[Event "23rd Hoogeveen Open 2019"]
[Site "Hoogeveen"]
[Date "2019.10.20"]
[Round "2.35"]
[White "Faber, Hugo"]
[Black "Merkon, Oseb"]
[Result "1-0"]
[ECO "B02"]
[WhiteElo "2077"]
[BlackElo "1930"]
[Annotator "NA"]
[PlyCount "103"]
[EventDate "2019.10.19"]
[EventType "swiss"]
[EventCountry "NED"]
[SourceTitle "playchess.com"]
[Source "ChessBase"]
[SourceQuality "1"]
[TimeControl "40/5400+30:1800+30"]

1. e4 {[%emt 0:00:00]} c5 {[%emt 0:00:00]} 2. c3 {[%emt 0:00:20]} Nf6 {[%emt 0:00:00]} 3. e5 {[%emt 0:00:26]} Nd5 {[%emt 0:00:00]} 4. d4 {[%emt 0:01:04]} cxd4 {[%emt 0:00:10]} 5. cxd4 {[%emt 0:00:25]} e6 {[%emt 0:00:14]} 6. Nf3 {[%emt 0:00:45]} Be7 {[%emt 0:03:29]} 7. Nc3 {[%emt 0:03:21]} d6 {[%emt 0:09:34]} 8. Bd3 {[%emt 0:05:05]} Nc6 {[%emt 0:03:34]} 9. Nxd5 {[%emt 0:09:26]} exd5 {[%emt 0:00:21]} 10. h3 {[%emt 0:00:24]} dxe5 {[%emt 0:15:47]} 11. dxe5 {[%emt 0:00:13]} Bb4+ {[%emt 0:01:16]} 12. Bd2 {[%emt 0:01:21]} Qa5 {[%emt 0:03:14]} 13. O-O {[%emt 0:08:48]} Bxd2 {[%emt 0:00:53]} 14. Nxd2 {[%emt 0:00:21]} Be6 {[%emt 0:11:53]} 15. f4 {[%emt 0:10:27]} Qb6+ {[%emt 0:05:24]} 16. Rf2 {[%emt 0:01:04]} O-O-O {[%emt 0:05:41]} 17. Nf3 {[%emt 0:04:47]} g6 {[%emt 0:05:30]} 18. a3 {[%emt 0:15:08]} Kb8 {[%emt 0:00:53]} 19. Rc1 {[%emt 0:08:32]} Rc8 {[%emt 0:03:47]} 20. b4 {[%emt 0:08:57]} Nd4 {[%emt 0:01:23]} 21. Kf1 {[%emt 0:04:52]} Bf5 {[%emt 0:09:44]} 22. Rxc8+ {[%emt 0:07:54]} Rxc8 {[%emt 0:00:02]} 23. Rd2 {[%emt 0:00:17]} Bxd3+ {[%emt 0:04:09]} 24. Rxd3 {[%emt 0:00:09]} Nf5 {[%emt 0:00:10]} 25. Nd4 {[%emt 0:00:15]} Nxd4 {[%emt 0:07:55]} 26. Rxd4 {[%emt 0:00:07]} Rc4 {[%emt 0:00:05]} 27. Rxc4 {[%emt 0:00:57]} Qb5 {[%emt 0:01:21]} 28. Qd3 {[%emt 0:00:28]} Qxc4 {[%emt 0:00:12]} 29. Qxc4 {[%emt 0:01:05]} dxc4 {[%emt 0:00:01]} 30. Ke2 {[%emt 0:00:13]} b5 {[%emt 0:00:22]} 31. Ke3 {[%emt 0:00:24]} Kc7 {[%emt 0:00:08]} 32. g4 {[%emt 0:00:40]} Kd7 {[%emt 0:01:13]} 33. f5 {[%emt 0:00:31]} Ke7 {[%emt 0:01:31]} 34. h4 {[%emt 0:02:14]} h5 {[%emt 0:02:02]} 35. gxh5 {[%emt 0:03:28]} gxh5 {[%emt 0:00:01]} 36. Ke4 {[%emt 0:00:33]} Kd7 {[%emt 0:00:14]} 37. Kd4 {[%emt 0:00:15]} Kc6 {[%emt 0:01:39]} 38. a4 {[%emt 0:01:54]} bxa4 {[%emt 0:03:30]} 39. b5+ {[%emt 0:00:10]} Kxb5 {[%emt 0:00:31]} 40. e6 {[%emt 0:00:09]} fxe6 {[%emt 0:00:15]} 41. f6 {[%emt 0:30:02]} Kb4 {[%emt 0:02:12]} 42. f7 {[%emt 0:00:00]} e5+ {[%emt 0:00:10]} 43. Kd5 {[%emt 0:00:00]} c3 {[%emt 0:00:39]} 44. f8=Q+ {[%emt 0:00:00]} Kb3 {[%emt 0:00:07]} 45. Qb8+ {[%emt 0:00:00]} Ka2 {[%emt 0:01:37]} 46. Qb4 {[%emt 0:00:00]} c2 {[%emt 0:00:29]} 47. Qxa4+ {[%emt 0:00:00]} Kb2 {[%emt 0:00:08]} 48. Qb4+ {[%emt 0:00:00]} Ka2 {[%emt 0:00:10]} 49. Qc3 {[%emt 0:00:00]} Kb1 {[%emt 0:00:23]} 50. Qb3+ {[%emt 0:00:00]} Kc1 {[%emt 0:00:26]} 51. Kc4 {[%emt 0:00:00]} Kd2 {[%emt 0:00:29]} 52. Qd3+ {[%emt 0:00:00]} 1-0

[Event "23rd Hoogeveen Open 2019"]
[Site "Hoogeveen"]
[Date "2019.10.20"]
[Round "2.36"]
[White "Achuthan, Dylan"]
[Black "Stock, Andreas"]
[Result "1-0"]
[ECO "B22"]
[WhiteElo "1865"]
[BlackElo "2076"]
[Annotator "NA"]
[PlyCount "83"]
[EventDate "2019.10.19"]
[EventType "swiss"]
[EventCountry "NED"]
[SourceTitle "playchess.com"]
[Source "ChessBase"]
[SourceQuality "1"]
[TimeControl "40/5400+30:1800+30"]

1. e4 {[%emt 0:00:00]} c5 {[%emt 0:00:00]} 2. Nf3 {[%emt 0:00:30]} Nc6 {[%emt 0:00:30]} 3. c3 {[%emt 0:00:30]} e5 {[%emt 0:00:30]} 4. d4 {[%emt 0:00:30]} cxd4 {[%emt 0:00:30]} 5. cxd4 {[%emt 0:00:30]} exd4 {[%emt 0:00:30]} 6. Nxd4 {[%emt 0:00:30]} Nf6 {[%emt 0:00:30]} 7. Nc3 {[%emt 2:30:48]} Bb4 {[%emt 0:04:27]} 8. Nxc6 {[%emt 0:00:00]} bxc6 {[%emt 0:00:00]} 9. Bd3 {[%emt 0:00:00]} O-O {[%emt 0:03:46]} 10. O-O {[%emt 0:00:00]} Re8 {[%emt 0:03:22]} 11. Bg5 {[%emt 0:00:00]} h6 {[%emt 0:01:03]} 12. Bh4 {[%emt 0:00:00]} g5 {[%emt 0:13:24]} 13. e5 {[%emt 0:00:00]} Bxc3 {[%emt 0:28:59]} 14. bxc3 {[%emt 0:00:00]} gxh4 {[%emt 0:00:25]} 15. exf6 {[%emt 0:00:00]} Qxf6 {[%emt 0:00:23]} 16. Re1 {[%emt 0:00:00]} Rxe1+ {[%emt 0:07:00]} 17. Qxe1 {[%emt 0:00:00]} d5 {[%emt 0:00:58]} 18. Qe8+ {[%emt 0:00:00]} Kg7 {[%emt 0:00:03]} 19. Re1 {[%emt 0:00:00]} Qxc3 {[%emt 0:15:05]} 20. Re7 {[%emt 0:00:00]} Qa1+ {[%emt 0:03:41]} 21. Bf1 {[%emt 0:00:00]} Qf6 {[%emt 0:01:05]} 22. Rc7 {[%emt 0:00:00]} Qe6 {[%emt 0:12:37]} 23. Qd8 {[%emt 0:00:00]} Qf6 {[%emt 0:01:17]} 24. Qe8 {[%emt 0:00:00]} Ba6 {[%emt 0:00:28]} 25. Qxa8 {[%emt 0:00:00]} Bxf1 {[%emt 0:00:04]} 26. Qxc6 {[%emt 0:00:00]} Qxc6 {[%emt 0:00:44]} 27. Rxc6 {[%emt 0:00:00]} Bc4 {[%emt 0:00:14]} 28. a4 {[%emt 0:00:00]} a6 {[%emt 0:00:24]} 29. f3 {[%emt 0:00:00]} f6 {[%emt 0:00:05]} 30. Kf2 {[%emt 0:00:00]} Kg6 {[%emt 0:00:11]} 31. Ke3 {[%emt 0:00:00]} Kf5 {[%emt 0:00:22]} 32. Kd4 {[%emt 0:00:00]} h5 {[%emt 0:00:15]} 33. a5 {[%emt 0:00:00]} Kg5 {[%emt 0:00:29]} 34. Rc8 {[%emt 0:00:00]} Kf4 {[%emt 0:00:15]} 35. Rf8 {[%emt 0:00:00]} f5 {[%emt 0:00:15]} 36. Rh8 {[%emt 0:00:00]} h3 {[%emt 0:00:31]} 37. gxh3 {[%emt 0:00:00]} Kg5 {[%emt 0:03:12]} 38. Ke5 {[%emt 0:00:00]} Be2 {[%emt 0:00:51]} 39. f4+ {[%emt 0:00:00]} Kh4 {[%emt 0:00:13]} 40. Kxf5 {[%emt 0:00:00]} Kxh3 {[%emt 0:00:21]} 41. Ke5 {[%emt 0:00:00]} Kxh2 {[%emt 0:30:17]} 42. f5 {[%emt 0:00:00]} 1-0

[Event "23rd Hoogeveen Open 2019"]
[Site "Hoogeveen"]
[Date "2019.10.20"]
[Round "2.37"]
[White "Boersma, Jan"]
[Black "De Winter, Arthur"]
[Result "0-1"]
[ECO "B30"]
[WhiteElo "2070"]
[BlackElo "1896"]
[Annotator "NA"]
[PlyCount "78"]
[EventDate "2019.10.19"]
[EventType "swiss"]
[EventCountry "NED"]
[SourceTitle "playchess.com"]
[Source "ChessBase"]
[SourceQuality "1"]
[TimeControl "40/5400+30:1800+30"]

1. e4 {[%emt 0:00:00]} c5 {[%emt 0:00:00]} 2. Nf3 {[%emt 0:00:00]} e6 {[%emt 0:00:00]} 3. Nc3 {[%emt 0:00:00]} Nc6 {[%emt 0:00:16]} 4. Bb5 {[%emt 0:03:02]} Nd4 {[%emt 0:00:51]} 5. Bd3 {[%emt 0:00:36]} Ne7 {[%emt 0:04:06]} 6. Nxd4 {[%emt 0:02:38]} cxd4 {[%emt 0:00:07]} 7. Ne2 {[%emt 0:00:03]} Nc6 {[%emt 0:00:25]} 8. O-O {[%emt 0:00:29]} Be7 {[%emt 0:05:49]} 9. f4 {[%emt 0:03:01]} O-O {[%emt 0:02:05]} 10. c3 {[%emt 0:01:36]} dxc3 {[%emt 0:07:02]} 11. dxc3 {[%emt 0:01:18]} d6 {[%emt 0:07:42]} 12. Be3 {[%emt 0:00:56]} b6 {[%emt 0:00:50]} 13. Qc2 {[%emt 0:03:26]} Bb7 {[%emt 0:05:58]} 14. Rad1 {[%emt 0:02:52]} Qc7 {[%emt 0:03:37]} 15. Ng3 {[%emt 0:05:56]} Rac8 {[%emt 0:05:47]} 16. Qe2 {[%emt 0:05:38]} Rfd8 {[%emt 0:07:41]} 17. Qg4 {[%emt 0:05:12]} Kh8 {[%emt 0:04:07]} 18. Qh3 {[%emt 0:02:26]} Kg8 {[%emt 0:02:58]} 19. f5 {[%emt 0:06:58]} exf5 {[%emt 0:07:08]} 20. Nxf5 {[%emt 0:00:25]} Ne5 {[%emt 0:00:46]} 21. Qg3 {[%emt 0:11:04]} Ng6 {[%emt 0:03:52]} 22. Bd4 {[%emt 0:02:11]} Bf8 {[%emt 0:00:31]} 23. h4 {[%emt 0:00:18]} f6 {[%emt 0:04:37]} 24. h5 {[%emt 0:05:42]} Ne5 {[%emt 0:00:17]} 25. Bc2 {[%emt 0:00:57]} Kh8 {[%emt 0:00:25]} 26. Bb3 {[%emt 0:00:51]} Bxe4 {[%emt 0:05:58]} 27. Nh6 {[%emt 0:01:43]} d5 {[%emt 0:06:49]} 28. Rxf6 {[%emt 0:08:06]} Bc5 {[%emt 0:02:13]} 29. Rf2 {[%emt 0:15:30]} Bxd4 {[%emt 0:02:43]} 30. cxd4 {[%emt 0:00:11]} Nf3+ {[%emt 0:00:18]} 31. Rxf3 {[%emt 0:00:06]} Bxf3 {[%emt 0:00:09]} 32. Qxf3 {[%emt 0:00:19]} gxh6 {[%emt 0:00:08]} 33. Bxd5 {[%emt 0:00:30]} Qg7 {[%emt 0:01:24]} 34. Be6 {[%emt 0:00:39]} Rc2 {[%emt 0:00:46]} 35. d5 {[%emt 0:00:38]} Rf8 {[%emt 0:01:22]} 36. Qe4 {[%emt 0:00:08]} Rff2 {[%emt 0:01:01]} 37. Bh3 {[%emt 0:00:12]} Rce2 {[%emt 0:00:14]} 38. Qd4 {[%emt 0:03:58]} Qxd4 39. Rxd4 Rf8 {[%emt 0:00:12]} 0-1

[Event "23rd Hoogeveen Open 2019"]
[Site "Hoogeveen"]
[Date "2019.10.21"]
[Round "3.9"]
[White "De Jong, Migchiel"]
[Black "Vrolijk, Liam"]
[Result "0-1"]
[ECO "E05"]
[WhiteElo "2330"]
[BlackElo "2478"]
[Annotator "RC"]
[PlyCount "66"]
[EventDate "2019.10.19"]
[EventType "swiss"]
[EventCountry "NED"]
[SourceTitle "playchess.com"]
[Source "ChessBase"]
[SourceQuality "1"]
[TimeControl "40/5400+30:1800+30"]

1. Nf3 {[%emt 0:00:00]} d5 {[%emt 0:00:04]} 2. d4 {[%emt 0:00:29]} Nf6 {[%emt 0:00:23]} 3. c4 {[%emt 0:00:08]} e6 {[%emt 0:00:19]} 4. g3 {[%emt 0:00:36]} Be7 {[%emt 0:03:14]} 5. Bg2 {[%emt 0:00:41]} O-O {[%emt 0:00:07]} 6. O-O {[%emt 0:01:52]} dxc4 {[%emt 0:00:07]} 7. Qc2 {[%emt 0:00:18]} b5 {[%emt 0:00:42]} 8. a4 {[%emt 0:03:12]} b4 {[%emt 0:01:33]} 9. Nfd2 {[%emt 0:08:33]} Nd5 {[%emt 0:00:44]} 10. Nxc4 {[%emt 0:00:46]} c5 {[%emt 0:00:57]} 11. dxc5 {[%emt 0:01:55]} Ba6 {[%emt 0:00:44]} 12. Nbd2 {[%emt 0:02:10]} Nd7 {[%emt 0:13:20]} 13. e4 {[%emt 0:01:58]} N5f6 {[%emt 0:01:55]} 14. c6 {[%emt 0:02:59]} Nc5 {[%emt 0:01:06]} 15. e5 {[%emt 0:01:42]} Nd5 {[%emt 0:01:22]} 16. b3 {[%emt 0:03:03]} Rc8 {[%emt 0:03:05]} 17. Bb2 {[%emt 0:01:04]} Rxc6 {[%emt 0:00:19]} 18. Rac1 {[%emt 0:02:20]} Qc7 {[%emt 0:08:36]} 19. Rfd1 {[%emt 0:00:34]} Rc8 {[%emt 0:06:01]} 20. Bf1 {[%emt 0:00:20]} Bg5 {[%emt 0:15:33]} 21. Nd6 {[%emt 0:09:04]} Bxf1 {[%emt 0:11:38]} 22. Kxf1 {[%emt 0:09:26]} Bxd2 {[%emt 0:02:27]} 23. Rxd2 {[%emt 0:00:46]} Nxb3 {[%emt 0:01:00]} 24. Qxb3 {[%emt 0:03:19]} Rxc1+ {[%emt 0:00:11]} 25. Kg2 {[%emt 0:02:28]} Rc2 {[%emt 0:00:38]} 26. Rd3 {[%emt 0:05:42]} Rf8 {[%emt 0:01:36]} 27. Bd4 {[%emt 0:00:35]} Rc1 {[%emt 0:02:10]} 28. Rf3 {[%emt 0:01:17]} Qc2 {[%emt 0:04:28]} 29. Qxc2 {[%emt 0:05:36]} Rxc2 {[%emt 0:00:08]} 30. Bxa7 {[%emt 0:00:03]} Rc3 {[%emt 0:02:13]} 31. Nb5 {[%emt 0:06:27]} Rxf3 {[%emt 0:01:13]} 32. Kxf3 {[%emt 0:00:05]} b3 {[%emt 0:00:29]} 33. a5 {[%emt 0:01:35]} Ra8 {[%emt 0:00:53]} 0-1

[Event "23rd Hoogeveen Open 2019"]
[Site "Hoogeveen"]
[Date "2019.10.21"]
[Round "3.10"]
[White "Romanishin, Oleg M"]
[Black "Gomes, Mary Ann"]
[Result "0-1"]
[ECO "E62"]
[WhiteElo "2441"]
[BlackElo "2268"]
[Annotator "RC"]
[PlyCount "82"]
[EventDate "2019.10.19"]
[EventType "swiss"]
[EventCountry "NED"]
[SourceTitle "playchess.com"]
[Source "ChessBase"]
[SourceQuality "1"]
[TimeControl "40/5400+30:1800+30"]

1. d4 {[%emt 0:00:00]} Nf6 {[%emt 0:00:00]} 2. Nf3 {[%emt 0:00:00]} g6 {[%emt 0:00:53]} 3. g3 {[%emt 0:00:00]} Bg7 {[%emt 0:00:05]} 4. Bg2 {[%emt 0:00:00]} O-O {[%emt 0:00:15]} 5. c4 {[%emt 0:03:23]} d6 {[%emt 0:00:12]} 6. O-O {[%emt 0:00:07]} Nc6 {[%emt 0:00:24]} 7. Nc3 {[%emt 0:00:07]} Bf5 {[%emt 0:00:06]} 8. Bd2 {[%emt 0:04:58]} Ne4 {[%emt 0:00:36]} 9. Be1 {[%emt 0:00:27]} Nxc3 {[%emt 0:00:36]} 10. Bxc3 {[%emt 0:00:08]} Be4 {[%emt 0:00:04]} 11. Qd2 {[%emt 0:15:31]} d5 {[%emt 0:08:08]} 12. Rad1 {[%emt 0:13:47]} e6 {[%emt 0:02:54]} 13. b3 {[%emt 0:03:20]} a5 {[%emt 0:04:16]} 14. c5 {[%emt 0:11:59]} b6 {[%emt 0:08:32]} 15. cxb6 {[%emt 0:09:59]} cxb6 {[%emt 0:00:06]} 16. Ne5 {[%emt 0:00:28]} Bxe5 {[%emt 0:04:35]} 17. dxe5 {[%emt 0:04:38]} Bxg2 {[%emt 0:00:06]} 18. Kxg2 {[%emt 0:00:07]} Qe7 {[%emt 0:00:48]} 19. Rc1 {[%emt 0:04:08]} Rfc8 {[%emt 0:00:16]} 20. Bd4 {[%emt 0:08:28]} Qb4 {[%emt 0:19:21]} 21. Bc3 {[%emt 0:06:35]} Qb5 {[%emt 0:03:46]} 22. e3 {[%emt 0:00:20]} a4 {[%emt 0:01:45]} 23. Rb1 {[%emt 0:04:37]} axb3 {[%emt 0:00:25]} 24. Rxb3 {[%emt 0:00:09]} Qc4 {[%emt 0:01:39]} 25. Ba1 {[%emt 0:06:23]} Qe4+ {[%emt 0:09:13]} 26. f3 {[%emt 0:00:10]} Qa4 {[%emt 0:00:04]} 27. Rf2 {[%emt 0:01:01]} Na5 {[%emt 0:02:17]} 28. Rb4 {[%emt 0:00:16]} Qa3 {[%emt 0:00:16]} 29. Bd4 {[%emt 0:02:09]} Nc4 {[%emt 0:00:45]} 30. Qe1 {[%emt 0:00:09]} Ra6 {[%emt 0:02:50]} 31. Rb3 {[%emt 0:00:20]} Qe7 {[%emt 0:00:12]} 32. e4 {[%emt 0:01:21]} Qb7 {[%emt 0:02:57]} 33. Rb4 {[%emt 0:00:39]} Na3 {[%emt 0:02:08]} 34. Rbb2 {[%emt 0:00:40]} b5 {[%emt 0:05:52]} 35. exd5 {[%emt 0:00:20]} Qxd5 {[%emt 0:00:06]} 36. Qe4 {[%emt 0:00:37]} Qxe4 {[%emt 0:01:46]} 37. fxe4 {[%emt 0:00:02]} Ra4 {[%emt 0:00:36]} 38. Rbd2 {[%emt 0:00:25]} Nc4 {[%emt 0:00:40]} 39. Rd3 {[%emt 0:00:50]} Rd8 {[%emt 0:02:08]} 40. Rff3 {[%emt 0:00:29]} Rxa2+ {[%emt 0:00:14]} 41. Kh3 {[%emt 0:30:07]} Rd2 {[%emt 0:30:52]} 0-1

[Event "23rd Hoogeveen Open 2019"]
[Site "Hoogeveen"]
[Date "2019.10.21"]
[Round "3.12"]
[White "Zwirs, Nico"]
[Black "Hilwerda, Jonas"]
[Result "1-0"]
[ECO "E90"]
[WhiteElo "2421"]
[BlackElo "2229"]
[Annotator "RC"]
[PlyCount "61"]
[EventDate "2019.10.19"]
[EventType "swiss"]
[EventCountry "NED"]
[SourceTitle "playchess.com"]
[Source "ChessBase"]
[SourceQuality "1"]
[TimeControl "40/5400+30:1800+30"]

1. c4 {[%emt 0:00:00]} Nf6 {[%emt 0:00:00]} 2. Nc3 {[%emt 0:00:00]} g6 {[%emt 0:00:00]} 3. d4 {[%emt 0:00:19]} Bg7 {[%emt 0:00:00]} 4. e4 {[%emt 0:00:10]} d6 {[%emt 0:00:00]} 5. h3 {[%emt 0:00:08]} O-O {[%emt 0:00:26]} 6. Be3 {[%emt 0:00:11]} c5 {[%emt 0:00:17]} 7. Nf3 {[%emt 0:01:09]} cxd4 {[%emt 0:00:04]} 8. Nxd4 {[%emt 0:00:12]} b6 {[%emt 0:00:03]} 9. g3 {[%emt 0:01:50]} Bb7 {[%emt 0:01:07]} 10. Bg2 {[%emt 0:00:35]} a6 {[%emt 0:03:48]} 11. O-O {[%emt 0:05:03]} Qc7 {[%emt 0:02:45]} 12. Nd5 {[%emt 0:01:21]} Nxd5 {[%emt 0:03:24]} 13. cxd5 {[%emt 0:00:40]} Rc8 {[%emt 0:05:37]} 14. Rc1 {[%emt 0:10:32]} Qd8 {[%emt 0:01:22]} 15. Rxc8 {[%emt 0:00:09]} Qxc8 {[%emt 0:02:51]} 16. Qe2 {[%emt 0:05:34]} Nd7 {[%emt 0:04:05]} 17. Rc1 {[%emt 0:03:39]} Qd8 {[%emt 0:07:49]} 18. Nc6 {[%emt 0:02:51]} Qe8 {[%emt 0:02:55]} 19. b4 {[%emt 0:03:54]} Rc8 {[%emt 0:18:57]} 20. a4 {[%emt 0:10:46]} b5 {[%emt 0:02:25]} 21. axb5 {[%emt 0:03:08]} axb5 {[%emt 0:00:02]} 22. Qxb5 {[%emt 0:01:42]} Bxc6 {[%emt 0:00:57]} 23. dxc6 {[%emt 0:17:11]} Ne5 {[%emt 0:03:11]} 24. f4 {[%emt 0:11:34]} Nxc6 {[%emt 0:10:47]} 25. Qb7 {[%emt 0:01:06]} Bb2 {[%emt 0:01:28]} 26. Rc2 {[%emt 0:01:05]} Ba3 {[%emt 0:01:49]} 27. b5 {[%emt 0:01:50]} Na7 {[%emt 0:00:33]} 28. Rxc8 {[%emt 0:00:36]} Nxc8 {[%emt 0:00:15]} 29. Qa8 {[%emt 0:02:28]} Bc5 {[%emt 0:03:35]} 30. Bxc5 {[%emt 0:00:09]} dxc5 {[%emt 0:00:03]} 31. b6 {[%emt 0:00:21]} 1-0

[Event "23rd Hoogeveen Open 2019"]
[Site "Hoogeveen"]
[Date "2019.10.21"]
[Round "3.14"]
[White "Dixit, Nikhil"]
[Black "Slagboom, Leandro"]
[Result "1-0"]
[ECO "B51"]
[WhiteElo "2358"]
[BlackElo "1954"]
[Annotator "RC"]
[PlyCount "41"]
[EventDate "2019.10.19"]
[EventType "swiss"]
[EventCountry "NED"]
[SourceTitle "playchess.com"]
[Source "ChessBase"]
[SourceQuality "1"]
[TimeControl "40/5400+30:1800+30"]

1. e4 {[%emt 0:00:00]} c5 {[%emt 0:00:00]} 2. Nf3 {[%emt 0:00:00]} d6 {[%emt 0:00:00]} 3. Bb5+ {[%emt 0:01:45]} Nd7 {[%emt 0:00:00]} 4. O-O {[%emt 0:01:00]} Ngf6 {[%emt 0:01:08]} 5. Re1 {[%emt 0:00:41]} e6 {[%emt 0:02:01]} 6. c3 {[%emt 0:00:23]} a6 {[%emt 0:01:49]} 7. Bd3 {[%emt 0:01:57]} Be7 {[%emt 0:00:51]} 8. Bc2 {[%emt 0:00:12]} O-O {[%emt 0:01:34]} 9. d4 {[%emt 0:00:17]} b5 {[%emt 0:09:50]} 10. e5 {[%emt 0:09:04]} dxe5 {[%emt 0:02:58]} 11. dxe5 {[%emt 0:00:09]} Nd5 {[%emt 0:02:40]} 12. a4 {[%emt 0:03:51]} bxa4 {[%emt 0:07:34]} 13. Rxa4 {[%emt 0:06:14]} g6 {[%emt 0:06:52]} 14. Qd2 {[%emt 0:02:00]} Re8 {[%emt 0:10:15]} 15. Qh6 {[%emt 0:02:53]} Nf8 {[%emt 0:05:29]} 16. Nbd2 {[%emt 0:05:02]} Bb7 {[%emt 0:06:57]} 17. Ne4 {[%emt 0:02:58]} Nb6 {[%emt 0:01:09]} 18. Rd1 {[%emt 0:03:37]} Nxa4 {[%emt 0:07:04]} 19. Rxd8 {[%emt 0:01:15]} Rexd8 {[%emt 0:00:19]} 20. Nf6+ {[%emt 0:00:21]} Kh8 {[%emt 0:01:23]} 21. Ng5 {[%emt 0:00:29]} 1-0

[Event "23rd Hoogeveen Open 2019"]
[Site "Hoogeveen"]
[Date "2019.10.21"]
[Round "3.19"]
[White "Kirchei, Viktoriia"]
[Black "Grooten, Herman"]
[Result "1-0"]
[ECO "B42"]
[WhiteElo "2051"]
[BlackElo "2274"]
[Annotator "RC"]
[PlyCount "79"]
[EventDate "2019.10.19"]
[EventType "swiss"]
[EventCountry "NED"]
[SourceTitle "playchess.com"]
[Source "ChessBase"]
[SourceQuality "1"]
[TimeControl "40/5400+30:1800+30"]

1. e4 {[%emt 0:00:00]} c5 {[%emt 0:03:38]} 2. Nf3 {[%emt 0:00:00]} e6 {[%emt 0:00:06]} 3. d4 {[%emt 0:00:00]} cxd4 {[%emt 0:00:04]} 4. Nxd4 {[%emt 0:00:00]} a6 {[%emt 0:00:08]} 5. Bd3 {[%emt 0:00:00]} Nf6 {[%emt 0:00:16]} 6. O-O {[%emt 0:00:21]} Qc7 {[%emt 0:00:11]} 7. Qe2 {[%emt 0:01:04]} d6 {[%emt 0:00:31]} 8. c4 {[%emt 0:01:06]} g6 {[%emt 0:01:09]} 9. Nc3 {[%emt 0:12:38]} Bg7 {[%emt 0:00:56]} 10. Be3 {[%emt 0:02:26]} Nbd7 {[%emt 0:01:38]} 11. f4 {[%emt 0:02:28]} O-O {[%emt 0:00:38]} 12. a4 {[%emt 0:01:07]} Nc5 {[%emt 0:04:12]} 13. Bc2 {[%emt 0:00:55]} e5 {[%emt 0:03:35]} 14. fxe5 {[%emt 0:08:07]} dxe5 {[%emt 0:00:34]} 15. Nf3 {[%emt 0:01:17]} Ne6 {[%emt 0:06:06]} 16. Nd2 {[%emt 0:10:30]} Nf4 {[%emt 0:12:02]} 17. Qf3 {[%emt 0:05:10]} Ng4 {[%emt 0:07:32]} 18. g3 {[%emt 0:06:59]} Nxe3 {[%emt 0:02:01]} 19. Qxe3 {[%emt 0:00:05]} Ne6 {[%emt 0:00:25]} 20. Nd5 {[%emt 0:00:51]} Qd8 {[%emt 0:01:27]} 21. Nf3 {[%emt 0:01:17]} Nd4 {[%emt 0:03:21]} 22. Nxd4 {[%emt 0:00:29]} exd4 {[%emt 0:00:06]} 23. Qf4 {[%emt 0:00:19]} Be6 {[%emt 0:07:35]} 24. a5 {[%emt 0:09:29]} d3 {[%emt 0:11:36]} 25. Bxd3 {[%emt 0:00:14]} Bxb2 {[%emt 0:00:12]} 26. Ra2 {[%emt 0:00:45]} Bd4+ {[%emt 0:00:43]} 27. Kh1 {[%emt 0:00:24]} Rc8 {[%emt 0:01:16]} 28. Rb1 {[%emt 0:01:33]} Qd7 {[%emt 0:01:53]} 29. Be2 {[%emt 0:07:44]} Bxd5 {[%emt 0:13:16]} 30. exd5 {[%emt 0:00:12]} Bg7 {[%emt 0:01:33]} 31. Bg4 {[%emt 0:03:43]} f5 {[%emt 0:00:23]} 32. Bf3 {[%emt 0:00:26]} Rc5 {[%emt 0:04:28]} 33. Re2 {[%emt 0:07:09]} Rxa5 {[%emt 0:00:50]} 34. d6 {[%emt 0:00:13]} Re8 {[%emt 0:01:48]} 35. Bd5+ {[%emt 0:02:46]} Kh8 {[%emt 0:05:26]} 36. Rxe8+ {[%emt 0:00:54]} Qxe8 {[%emt 0:00:04]} 37. d7 {[%emt 0:00:06]} Qf8 {[%emt 0:01:48]} 38. Qc7 {[%emt 0:00:50]} Rxd5 {[%emt 0:01:10]} 39. cxd5 {[%emt 0:00:05]} Bf6 {[%emt 0:00:03]} 40. Re1 {[%emt 0:01:22]} 1-0

[Event "23rd Hoogeveen Open 2019"]
[Site "Hoogeveen"]
[Date "2019.10.21"]
[Round "3.20"]
[White "Van Dael, Siem"]
[Black "Emans, Job"]
[Result "1-0"]
[ECO "C54"]
[WhiteElo "2273"]
[BlackElo "2028"]
[Annotator "RC"]
[PlyCount "87"]
[EventDate "2019.10.19"]
[EventType "swiss"]
[EventCountry "NED"]
[SourceTitle "playchess.com"]
[Source "ChessBase"]
[SourceQuality "1"]
[TimeControl "40/5400+30:1800+30"]

1. e4 {[%emt 0:00:00]} e5 {[%emt 0:00:00]} 2. Nf3 {[%emt 0:00:00]} Nc6 {[%emt 0:00:00]} 3. Bc4 {[%emt 0:00:00]} Bc5 {[%emt 0:00:00]} 4. c3 {[%emt 0:00:00]} Nf6 {[%emt 0:00:01]} 5. d3 {[%emt 0:00:00]} d6 {[%emt 0:00:09]} 6. a4 {[%emt 0:00:00]} a5 {[%emt 0:00:20]} 7. O-O {[%emt 0:00:02]} O-O {[%emt 0:00:16]} 8. Na3 {[%emt 0:00:20]} Be6 {[%emt 0:25:49]} 9. Bxe6 {[%emt 0:01:14]} fxe6 {[%emt 0:00:07]} 10. Nc4 {[%emt 0:00:15]} Ba7 {[%emt 0:01:28]} 11. h3 {[%emt 0:01:52]} Qd7 {[%emt 0:02:13]} 12. Re1 {[%emt 0:00:20]} Nh5 {[%emt 0:10:19]} 13. d4 {[%emt 0:02:18]} exd4 {[%emt 0:00:54]} 14. cxd4 {[%emt 0:00:07]} Qf7 {[%emt 0:03:37]} 15. Be3 {[%emt 0:03:38]} h6 {[%emt 0:07:25]} 16. Ra3 {[%emt 0:13:53]} Nf4 {[%emt 0:04:50]} 17. Bxf4 {[%emt 0:26:24]} Qxf4 {[%emt 0:00:22]} 18. Rd3 {[%emt 0:00:05]} Rae8 {[%emt 0:06:45]} 19. Rd2 {[%emt 0:09:21]} Re7 {[%emt 0:06:54]} 20. Na3 {[%emt 0:10:17]} e5 {[%emt 0:07:22]} 21. d5 {[%emt 0:14:29]} Nd4 {[%emt 0:04:50]} 22. Rd3 {[%emt 0:00:06]} Ref7 {[%emt 0:01:54]} 23. Nb5 {[%emt 0:04:10]} Nxb5 {[%emt 0:01:30]} 24. axb5 {[%emt 0:00:05]} g5 {[%emt 0:01:02]} 25. Qd2 {[%emt 0:01:04]} Qg3 {[%emt 0:05:55]} 26. Kf1 {[%emt 0:01:05]} Rxf3 {[%emt 0:05:23]} 27. gxf3 {[%emt 0:00:05]} Rxf3 {[%emt 0:00:07]} 28. Rxf3 {[%emt 0:00:03]} Qxf3 {[%emt 0:00:07]} 29. Rc1 {[%emt 0:01:12]} Qh1+ {[%emt 0:00:20]} 30. Ke2 {[%emt 0:00:06]} Qxe4+ {[%emt 0:00:06]} 31. Kd1 {[%emt 0:00:25]} Bb6 {[%emt 0:01:50]} 32. Rc3 {[%emt 0:00:49]} Qb1+ {[%emt 0:02:48]} 33. Qc1 {[%emt 0:00:04]} Qxc1+ {[%emt 0:00:21]} 34. Kxc1 {[%emt 0:00:22]} Kg7 {[%emt 0:00:30]} 35. Kd2 {[%emt 0:00:11]} Bc5 {[%emt 0:00:30]} 36. Kd3 {[%emt 0:00:38]} Kf6 {[%emt 0:00:45]} 37. Ke4 {[%emt 0:00:04]} Kg6 {[%emt 0:00:31]} 38. Rf3 {[%emt 0:00:05]} Bb6 {[%emt 0:00:51]} 39. Rf8 {[%emt 0:00:08]} Bd4 {[%emt 0:00:28]} 40. b3 {[%emt 0:00:07]} Bc5 {[%emt 0:00:36]} 41. f3 {[%emt 0:30:19]} h5 {[%emt 0:12:27]} 42. Re8 {[%emt 0:00:00]} g4 {[%emt 0:02:16]} 43. fxg4 {[%emt 0:00:00]} hxg4 {[%emt 0:03:11]} 44. Rg8+ {[%emt 0:00:00]} 1-0